[Event "Late-Titled-Tuesday-Blitz-March-05-2024"]
[Site "Chess.com"]
[Date "2024.03.05"]
[Round "2"]
[White "mishanick"]
[Black "IlanSchnaider"]
[Result "1-0"]
[WhiteElo "3083"]
[BlackElo "2647"]
[TimeControl "180+1"]
[EndTime "14:15:43 PST"]
[Termination "mishanick won by resignation"]

1. d4 {[%clk 0:03:00.9]} 1... d5 {[%clk 0:02:59.7]} 2. c4 {[%clk 0:03:01.5]}
2... c6 {[%clk 0:03:00.1]} 3. Nc3 {[%clk 0:03:02]} 3... Nf6 {[%clk 0:03:00.2]}
4. Nf3 {[%clk 0:03:02.7]} 4... e6 {[%clk 0:02:59.3]} 5. e3 {[%clk 0:03:03.1]}
5... Nbd7 {[%clk 0:02:58.5]} 6. Qc2 {[%clk 0:03:03.8]} 6... b6 {[%clk 0:02:58]}
7. Bd3 {[%clk 0:03:01.7]} 7... Bb7 {[%clk 0:02:57.1]} 8. O-O {[%clk 0:03:02.3]}
8... Be7 {[%clk 0:02:57.1]} 9. b3 {[%clk 0:03:01.9]} 9... O-O {[%clk 0:02:56.6]}
10. Bb2 {[%clk 0:03:02.3]} 10... h6 {[%clk 0:02:57.1]} 11. Rad1 {[%clk
0:03:01.9]} 11... Qc7 {[%clk 0:02:48.8]} 12. Ne5 {[%clk 0:02:50.2]} 12... dxc4
{[%clk 0:02:32.2]} 13. Bxc4 {[%clk 0:02:48.1]} 13... c5 {[%clk 0:01:51.2]} 14.
Nxd7 {[%clk 0:02:47.4]} 14... Nxd7 {[%clk 0:01:51]} 15. d5 {[%clk 0:02:47.2]}
15... exd5 {[%clk 0:01:41.1]} 16. Nxd5 {[%clk 0:02:28.7]} 16... Bxd5 {[%clk
0:01:40.8]} 17. Rxd5 {[%clk 0:02:28.8]} 17... Nf6 {[%clk 0:01:34.5]} 18. Rf5
{[%clk 0:02:26.1]} 18... Ng4 {[%clk 0:00:55.1]} 19. g3 {[%clk 0:02:24.7]} 19...
Bf6 {[%clk 0:00:50.6]} 20. Bxf6 {[%clk 0:02:18.4]} 20... Nxf6 {[%clk 0:00:50.4]}
21. Rxf6 {[%clk 0:02:18]} 21... gxf6 {[%clk 0:00:51.1]} 22. Qg6+ {[%clk
0:02:17.8]} 22... Kh8 {[%clk 0:00:51.8]} 23. Qxh6+ {[%clk 0:02:17.9]} 23... Kg8
{[%clk 0:00:52.5]} 24. Qg6+ {[%clk 0:02:09.2]} 24... Kh8 {[%clk 0:00:52.6]} 25.
Qxf6+ {[%clk 0:02:09.8]} 25... Kg8 {[%clk 0:00:52.4]} 26. Qg5+ {[%clk
0:02:09.3]} 26... Kh8 {[%clk 0:00:07.5]} 27. Qh6+ {[%clk 0:02:08.7]} 27... Kg8
{[%clk 0:00:08.1]} 28. Bd3 {[%clk 0:02:09.4]} 28... f5 {[%clk 0:00:02.5]} 29.
Bc4+ {[%clk 0:02:09.6]} 29... Rf7 {[%clk 0:00:02.9]} 30. Rd1 {[%clk 0:02:09.6]}
30... Rf8 {[%clk 0:00:01.5]} 31. Rd6 {[%clk 0:02:08.8]} 1-0

[Event "Late-Titled-Tuesday-Blitz-March-05-2024"]
[Site "Chess.com"]
[Date "2024.03.05"]
[Round "2"]
[White "secretworker2027"]
[Black "Hikaru"]
[Result "0-1"]
[WhiteElo "2653"]
[BlackElo "3257"]
[TimeControl "180+1"]
[EndTime "14:15:50 PST"]
[Termination "Hikaru won by resignation"]

1. e4 {[%clk 0:02:58.8]} 1... d5 {[%clk 0:02:58.9]} 2. Nf3 {[%clk 0:02:57.9]}
2... dxe4 {[%clk 0:02:58.8]} 3. Ng5 {[%clk 0:02:52.3]} 3... Bf5 {[%clk
0:02:58.8]} 4. Nc3 {[%clk 0:02:51.3]} 4... Nf6 {[%clk 0:02:58.6]} 5. Bc4 {[%clk
0:02:47.3]} 5... e6 {[%clk 0:02:58.7]} 6. Qe2 {[%clk 0:02:43.7]} 6... Nc6 {[%clk
0:02:58.5]} 7. Bb5 {[%clk 0:02:42.9]} 7... Qd4 {[%clk 0:02:54]} 8. d3 {[%clk
0:02:15.8]} 8... exd3 {[%clk 0:02:53.5]} 9. cxd3 {[%clk 0:02:15.1]} 9... Qd7
{[%clk 0:02:51.9]} 10. Be3 {[%clk 0:02:09.6]} 10... a6 {[%clk 0:02:51.6]} 11.
Bxc6 {[%clk 0:02:06.3]} 11... Qxc6 {[%clk 0:02:52.5]} 12. O-O {[%clk 0:02:03.7]}
12... Be7 {[%clk 0:02:50.8]} 13. Rac1 {[%clk 0:02:03.3]} 13... Qd7 {[%clk
0:02:50.7]} 14. Nce4 {[%clk 0:01:50.8]} 14... O-O {[%clk 0:02:49.6]} 15. Nxf6+
{[%clk 0:01:48.1]} 15... Bxf6 {[%clk 0:02:49.2]} 16. Ne4 {[%clk 0:01:48.9]}
16... Be7 {[%clk 0:02:48.7]} 17. Rfd1 {[%clk 0:01:40]} 17... Rfd8 {[%clk
0:02:46.6]} 18. Bc5 {[%clk 0:01:29.3]} 18... b6 {[%clk 0:02:35]} 19. Bxe7 {[%clk
0:01:19.1]} 19... Qxe7 {[%clk 0:02:35.9]} 20. d4 {[%clk 0:01:07.4]} 20... Bxe4
{[%clk 0:02:28.5]} 21. Qxe4 {[%clk 0:01:07.2]} 21... Rd5 {[%clk 0:02:29.4]} 22.
Qf4 {[%clk 0:00:59.3]} 22... Rc8 {[%clk 0:02:15.4]} 23. h3 {[%clk 0:00:49.3]}
23... Qd7 {[%clk 0:02:13.3]} 24. Qg4 {[%clk 0:00:42.7]} 24... Rd8 {[%clk
0:02:11.2]} 25. Qg3 {[%clk 0:00:36.8]} 25... c5 {[%clk 0:02:11.1]} 26. Qa3
{[%clk 0:00:29.5]} 26... a5 {[%clk 0:02:07.2]} 27. Qb3 {[%clk 0:00:29.5]} 27...
b5 {[%clk 0:02:05]} 28. a4 {[%clk 0:00:22.7]} 28... bxa4 {[%clk 0:02:00.5]} 29.
Qb6 {[%clk 0:00:14.3]} 29... cxd4 {[%clk 0:02:00.6]} 30. Rc7 {[%clk 0:00:14.1]}
30... Qd6 {[%clk 0:02:00.9]} 31. Qb7 {[%clk 0:00:14]} 31... Rf8 {[%clk
0:01:59.4]} 32. Rdc1 {[%clk 0:00:12.7]} 32... d3 {[%clk 0:01:59.7]} 0-1

[Event "Late-Titled-Tuesday-Blitz-March-05-2024"]
[Site "Chess.com"]
[Date "2024.03.05"]
[Round "2"]
[White "HansOnTwitch"]
[Black "TheoSlade"]
[Result "1-0"]
[WhiteElo "3111"]
[BlackElo "2418"]
[TimeControl "180+1"]
[EndTime "14:15:51 PST"]
[Termination "HansOnTwitch won by checkmate"]

1. e4 {[%clk 0:03:00.9]} 1... e5 {[%clk 0:02:59.9]} 2. Nf3 {[%clk 0:03:01.2]}
2... Nc6 {[%clk 0:03:00.4]} 3. Bc4 {[%clk 0:03:01.9]} 3... Bc5 {[%clk 0:03:00]}
4. d3 {[%clk 0:03:02.3]} 4... Nf6 {[%clk 0:03:00.4]} 5. O-O {[%clk 0:03:02.9]}
5... O-O {[%clk 0:02:59.6]} 6. Re1 {[%clk 0:03:02.8]} 6... d6 {[%clk 0:02:53]}
7. c3 {[%clk 0:03:02.7]} 7... h6 {[%clk 0:02:48.1]} 8. h3 {[%clk 0:03:02.1]}
8... Re8 {[%clk 0:02:44.3]} 9. Nbd2 {[%clk 0:03:02.3]} 9... Be6 {[%clk
0:02:39.3]} 10. b4 {[%clk 0:03:01.9]} 10... Bb6 {[%clk 0:02:38.2]} 11. a4 {[%clk
0:03:02.4]} 11... a6 {[%clk 0:02:11.6]} 12. Bxe6 {[%clk 0:02:54.6]} 12... Rxe6
{[%clk 0:02:11.3]} 13. Qc2 {[%clk 0:02:45.1]} 13... Ne7 {[%clk 0:01:43.4]} 14.
Nf1 {[%clk 0:02:41.6]} 14... Ng6 {[%clk 0:01:42]} 15. Ng3 {[%clk 0:02:41.8]}
15... Qd7 {[%clk 0:01:38.1]} 16. d4 {[%clk 0:02:32.1]} 16... Rae8 {[%clk
0:01:21.3]} 17. d5 {[%clk 0:02:32.2]} 17... R6e7 {[%clk 0:01:21.3]} 18. c4
{[%clk 0:02:28.5]} 18... Rf8 {[%clk 0:00:52.8]} 19. c5 {[%clk 0:02:27]} 19...
Ba7 {[%clk 0:00:51.3]} 20. Be3 {[%clk 0:02:23]} 20... dxc5 {[%clk 0:00:33.8]}
21. bxc5 {[%clk 0:02:22.4]} 21... b6 {[%clk 0:00:28.7]} 22. c6 {[%clk
0:02:20.2]} 22... Qd8 {[%clk 0:00:22.3]} 23. Nf5 {[%clk 0:02:20.2]} 23... Ree8
{[%clk 0:00:22.7]} 24. a5 {[%clk 0:02:20.8]} 24... Qc8 {[%clk 0:00:16.2]} 25.
axb6 {[%clk 0:02:20.9]} 25... Bxb6 {[%clk 0:00:15.2]} 26. Bxb6 {[%clk
0:02:21.5]} 26... cxb6 {[%clk 0:00:16.1]} 27. Nd6 {[%clk 0:02:22.1]} 27... Qa8
{[%clk 0:00:11.7]} 28. Nxe8 {[%clk 0:02:22.3]} 28... Rxe8 {[%clk 0:00:12.6]} 29.
c7 {[%clk 0:02:22.1]} 29... Nd7 {[%clk 0:00:07.8]} 30. Rec1 {[%clk 0:02:20.5]}
30... Nc5 {[%clk 0:00:08]} 31. Rab1 {[%clk 0:02:18.7]} 31... Qb7 {[%clk
0:00:07.3]} 32. Qxc5 {[%clk 0:02:18.5]} 32... bxc5 {[%clk 0:00:01.3]} 33. Rxb7
{[%clk 0:02:19.4]} 33... Ne7 {[%clk 0:00:01.3]} 34. Rb8 {[%clk 0:02:20.2]} 34...
Nc8 {[%clk 0:00:01.8]} 35. d6 {[%clk 0:02:20.6]} 35... Nxd6 {[%clk 0:00:02]} 36.
Rxe8+ {[%clk 0:02:21.3]} 36... Nxe8 {[%clk 0:00:02.9]} 37. c8=Q {[%clk 0:02:22]}
37... Kf8 {[%clk 0:00:03.5]} 38. Nxe5 {[%clk 0:02:19.7]} 38... f6 {[%clk
0:00:03.9]} 39. Rxc5 {[%clk 0:02:18.3]} 39... fxe5 {[%clk 0:00:03.8]} 40. Rxe5
{[%clk 0:02:19.2]} 40... g6 {[%clk 0:00:04.3]} 41. Qxe8+ {[%clk 0:02:20.1]}
41... Kg7 {[%clk 0:00:04.1]} 42. Re7+ {[%clk 0:02:20.7]} 42... Kf6 {[%clk
0:00:04.5]} 43. Rf7+ {[%clk 0:02:21.6]} 43... Kg5 {[%clk 0:00:05]} 44. Qe5+
{[%clk 0:02:22.5]} 44... Kh4 {[%clk 0:00:05.3]} 45. Qg3+ {[%clk 0:02:23.4]}
45... Kh5 {[%clk 0:00:05.7]} 46. Qg4# {[%clk 0:02:24.3]} 1-0

[Event "Late-Titled-Tuesday-Blitz-March-05-2024"]
[Site "Chess.com"]
[Date "2024.03.05"]
[Round "2"]
[White "Njal28"]
[Black "giovannibrandao7"]
[Result "1-0"]
[WhiteElo "2997"]
[BlackElo "2229"]
[TimeControl "180+1"]
[EndTime "14:15:56 PST"]
[Termination "Njal28 won by resignation"]

1. e4 {[%clk 0:03:00.1]} 1... c5 {[%clk 0:02:59.7]} 2. Nf3 {[%clk 0:03:00.2]}
2... d6 {[%clk 0:03:00.2]} 3. Nc3 {[%clk 0:02:59.2]} 3... Nf6 {[%clk 0:03:00.2]}
4. Bb5+ {[%clk 0:02:59.4]} 4... Bd7 {[%clk 0:02:59.3]} 5. Qe2 {[%clk 0:03:00]}
5... Nc6 {[%clk 0:02:57.6]} 6. O-O {[%clk 0:02:43.6]} 6... g6 {[%clk 0:02:56.7]}
7. e5 {[%clk 0:02:38.2]} 7... Nxe5 {[%clk 0:02:09.8]} 8. Nxe5 {[%clk 0:02:39.1]}
8... dxe5 {[%clk 0:02:08.9]} 9. Qxe5 {[%clk 0:02:39.9]} 9... Bg7 {[%clk
0:01:33.6]} 10. Qxc5 {[%clk 0:02:33.4]} 10... O-O {[%clk 0:01:29.2]} 11. Bxd7
{[%clk 0:02:30.9]} 11... Qxd7 {[%clk 0:01:29.1]} 12. Re1 {[%clk 0:02:30]} 12...
e5 {[%clk 0:01:16.9]} 13. Qb5 {[%clk 0:02:27.2]} 13... Rfe8 {[%clk 0:01:10.3]}
14. Qxd7 {[%clk 0:02:24.7]} 14... Nxd7 {[%clk 0:01:11.2]} 15. d3 {[%clk
0:02:25.1]} 15... Nc5 {[%clk 0:00:59.5]} 16. Be3 {[%clk 0:02:22.7]} 16... Ne6
{[%clk 0:00:59.4]} 17. Nb5 {[%clk 0:02:12.7]} 17... b6 {[%clk 0:00:56.4]} 18. a4
{[%clk 0:02:11]} 18... Bf8 {[%clk 0:00:32.1]} 19. Nc3 {[%clk 0:01:56.4]} 19...
Kg7 {[%clk 0:00:27.3]} 20. a5 {[%clk 0:01:46.2]} 20... Bc5 {[%clk 0:00:23.7]}
21. Bxc5 {[%clk 0:01:41.9]} 21... Nxc5 {[%clk 0:00:24.6]} 22. Kf1 {[%clk
0:01:35.9]} 22... f6 {[%clk 0:00:20]} 23. axb6 {[%clk 0:01:29.7]} 23... axb6
{[%clk 0:00:19.7]} 24. Nd5 {[%clk 0:01:30.6]} 1-0

[Event "Late-Titled-Tuesday-Blitz-March-05-2024"]
[Site "Chess.com"]
[Date "2024.03.05"]
[Round "2"]
[White "Lennis93"]
[Black "janhelmer03"]
[Result "1-0"]
[WhiteElo "2694"]
[BlackElo "2393"]
[TimeControl "180+1"]
[EndTime "14:15:58 PST"]
[Termination "Lennis93 won by resignation"]

1. a3 {[%clk 0:03:00.9]} 1... e5 {[%clk 0:02:33.9]} 2. c4 {[%clk 0:03:00.1]}
2... Nf6 {[%clk 0:02:30.3]} 3. Nc3 {[%clk 0:03:00.3]} 3... d5 {[%clk 0:02:25]}
4. cxd5 {[%clk 0:03:00]} 4... Nxd5 {[%clk 0:02:25.9]} 5. Nf3 {[%clk 0:02:58.6]}
5... Nc6 {[%clk 0:02:25.8]} 6. e3 {[%clk 0:02:58.3]} 6... Be6 {[%clk 0:02:24.9]}
7. Qc2 {[%clk 0:02:57.1]} 7... Nb6 {[%clk 0:02:20]} 8. Bb5 {[%clk 0:02:56.2]}
8... Bd6 {[%clk 0:02:19.2]} 9. d4 {[%clk 0:02:55.7]} 9... exd4 {[%clk
0:02:18.7]} 10. Nxd4 {[%clk 0:02:55.6]} 10... Bd7 {[%clk 0:02:18.2]} 11. Nxc6
{[%clk 0:02:55.2]} 11... bxc6 {[%clk 0:02:13.7]} 12. Bd3 {[%clk 0:02:55]} 12...
Qg5 {[%clk 0:02:09]} 13. O-O {[%clk 0:02:51.4]} 13... Qh4 {[%clk 0:02:03.6]} 14.
g3 {[%clk 0:02:48.7]} 14... Qh3 {[%clk 0:01:56.8]} 15. Be4 {[%clk 0:02:48.3]}
15... h5 {[%clk 0:01:53.3]} 16. Bg2 {[%clk 0:02:48]} 16... Qg4 {[%clk
0:01:51.3]} 17. h3 {[%clk 0:02:33.3]} 17... Qe6 {[%clk 0:01:30]} 18. Ne2 {[%clk
0:02:31.7]} 18... h4 {[%clk 0:00:21.9]} 19. Nd4 {[%clk 0:02:31]} 19... Qh6
{[%clk 0:00:19.7]} 20. g4 {[%clk 0:02:30.8]} 20... Nd5 {[%clk 0:00:16.2]} 21.
Nxc6 {[%clk 0:02:27.8]} 21... Bh2+ {[%clk 0:00:13.6]} 22. Kxh2 {[%clk
0:02:27.7]} 22... Qxc6 {[%clk 0:00:14.3]} 23. Qxc6 {[%clk 0:02:24.1]} 23... Bxc6
{[%clk 0:00:15.2]} 24. Bd2 {[%clk 0:02:23.4]} 24... O-O-O {[%clk 0:00:14.1]} 25.
Rac1 {[%clk 0:02:23.5]} 25... Kb7 {[%clk 0:00:13.9]} 26. Rc2 {[%clk 0:02:20.6]}
26... Ne7 {[%clk 0:00:13]} 27. Rfc1 {[%clk 0:01:52.1]} 27... Rd6 {[%clk
0:00:06.5]} 28. Bb4 {[%clk 0:01:49.8]} 28... Re6 {[%clk 0:00:05.8]} 29. Bxe7
{[%clk 0:01:48.2]} 29... Bxg2 {[%clk 0:00:05.9]} 30. Rxc7+ {[%clk 0:01:47.7]}
1-0

[Event "Late-Titled-Tuesday-Blitz-March-05-2024"]
[Site "Chess.com"]
[Date "2024.03.05"]
[Round "2"]
[White "Jospem"]
[Black "Fh2411"]
[Result "1-0"]
[WhiteElo "3098"]
[BlackElo "2648"]
[TimeControl "180+1"]
[EndTime "14:16:01 PST"]
[Termination "Jospem won on time"]

1. e4 {[%clk 0:03:00.9]} 1... c6 {[%clk 0:02:58.2]} 2. d4 {[%clk 0:03:01]} 2...
d5 {[%clk 0:02:58.9]} 3. e5 {[%clk 0:03:01.7]} 3... Bf5 {[%clk 0:02:58.8]} 4. h4
{[%clk 0:03:02.4]} 4... h5 {[%clk 0:02:58.5]} 5. Bd3 {[%clk 0:03:02.9]} 5...
Bxd3 {[%clk 0:02:59.2]} 6. Qxd3 {[%clk 0:03:03.8]} 6... Qa5+ {[%clk 0:02:59.1]}
7. b4 {[%clk 0:03:04.1]} 7... Qa6 {[%clk 0:02:58.7]} 8. e6 {[%clk 0:03:04.3]}
8... Qxd3 {[%clk 0:02:57.2]} 9. cxd3 {[%clk 0:03:05.2]} 9... fxe6 {[%clk
0:02:55.4]} 10. Nd2 {[%clk 0:03:05]} 10... e5 {[%clk 0:02:28.3]} 11. dxe5 {[%clk
0:03:05.9]} 11... e6 {[%clk 0:02:28.6]} 12. Rb1 {[%clk 0:03:06]} 12... Nh6
{[%clk 0:02:09.8]} 13. Ndf3 {[%clk 0:03:04.4]} 13... Nf7 {[%clk 0:01:45.6]} 14.
Nh3 {[%clk 0:03:03.9]} 14... Nd7 {[%clk 0:01:29.7]} 15. d4 {[%clk 0:03:03.8]}
15... a6 {[%clk 0:01:12.5]} 16. Nf4 {[%clk 0:03:02.3]} 16... Nd8 {[%clk
0:00:52.4]} 17. Ng5 {[%clk 0:03:02.1]} 17... Rh6 {[%clk 0:00:52]} 18. O-O {[%clk
0:02:58.6]} 18... Be7 {[%clk 0:00:51.5]} 19. Nf3 {[%clk 0:02:58.7]} 19... Nf8
{[%clk 0:00:45.1]} 20. g3 {[%clk 0:02:57.9]} 20... Rh8 {[%clk 0:00:39.7]} 21. a4
{[%clk 0:02:57.7]} 21... Kf7 {[%clk 0:00:23.8]} 22. Bd2 {[%clk 0:02:55.9]} 22...
Ng6 {[%clk 0:00:15.7]} 23. Nd3 {[%clk 0:02:53.3]} 23... b6 {[%clk 0:00:01.7]}
24. Rfc1 {[%clk 0:02:53.5]} 24... Rc8 {[%clk 0:00:01.9]} 25. b5 {[%clk
0:02:52.5]} 25... axb5 {[%clk 0:00:02.8]} 26. axb5 {[%clk 0:02:53.3]} 26... c5
{[%clk 0:00:03]} 27. dxc5 {[%clk 0:02:53.3]} 27... bxc5 {[%clk 0:00:03.9]} 28.
Bb4 {[%clk 0:02:41.2]} 28... c4 {[%clk 0:00:02.7]} 29. Bxe7 {[%clk 0:02:42.1]}
29... Kxe7 {[%clk 0:00:03.2]} 30. Nb4 {[%clk 0:02:41.4]} 30... Rc7 {[%clk
0:00:02.6]} 31. Re1 {[%clk 0:02:40.2]} 31... Nb7 {[%clk 0:00:02.6]} 32. Nd4
{[%clk 0:02:40.7]} 32... Nc5 {[%clk 0:00:02.6]} 33. Nbc6+ {[%clk 0:02:37.4]}
33... Kd7 {[%clk 0:00:03.1]} 34. Ra1 {[%clk 0:02:29.4]} 34... Rb7 {[%clk
0:00:03.6]} 35. Re3 {[%clk 0:02:22.2]} 35... Rc8 {[%clk 0:00:04.2]} 36. Rf3
{[%clk 0:02:17.7]} 36... Ke8 {[%clk 0:00:03.2]} 37. Raa3 {[%clk 0:02:17]} 37...
Ne7 {[%clk 0:00:02.2]} 38. Ra5 {[%clk 0:02:13.5]} 38... Nxc6 {[%clk 0:00:01.7]}
39. bxc6 {[%clk 0:02:14.4]} 1-0

[Event "Late-Titled-Tuesday-Blitz-March-05-2024"]
[Site "Chess.com"]
[Date "2024.03.05"]
[Round "2"]
[White "aranibos"]
[Black "anasta10"]
[Result "0-1"]
[WhiteElo "2283"]
[BlackElo "2513"]
[TimeControl "180+1"]
[EndTime "14:16:02 PST"]
[Termination "anasta10 won by resignation"]

1. d4 {[%clk 0:03:00.9]} 1... Nf6 {[%clk 0:02:59.6]} 2. Nf3 {[%clk 0:03:01.2]}
2... g6 {[%clk 0:02:59.8]} 3. Bg5 {[%clk 0:03:01.2]} 3... Bg7 {[%clk 0:03:00]}
4. Nbd2 {[%clk 0:03:01.2]} 4... c5 {[%clk 0:03:00.4]} 5. e3 {[%clk 0:02:58.8]}
5... O-O {[%clk 0:03:00.4]} 6. c3 {[%clk 0:02:58.1]} 6... b6 {[%clk 0:03:01]} 7.
Bd3 {[%clk 0:02:57]} 7... Bb7 {[%clk 0:03:01.5]} 8. h4 {[%clk 0:02:57.1]} 8...
h5 {[%clk 0:03:01.2]} 9. Qb3 {[%clk 0:02:46]} 9... Nc6 {[%clk 0:02:56.2]} 10.
dxc5 {[%clk 0:02:28.2]} 10... Na5 {[%clk 0:02:47.5]} 11. Qa3 {[%clk 0:02:24.7]}
11... Re8 {[%clk 0:02:40.9]} 12. O-O {[%clk 0:02:20.5]} 12... Qc7 {[%clk
0:02:39.5]} 13. cxb6 {[%clk 0:02:10.8]} 13... axb6 {[%clk 0:02:40.4]} 14. b4
{[%clk 0:01:51.6]} 14... Nc4 {[%clk 0:02:25.9]} 15. Qb3 {[%clk 0:01:50.8]} 15...
Nxd2 {[%clk 0:02:22.1]} 16. Nxd2 {[%clk 0:01:51]} 16... Ng4 {[%clk 0:02:21.5]}
17. Bf4 {[%clk 0:01:44.3]} 17... Qxc3 {[%clk 0:02:20]} 18. Rac1 {[%clk
0:01:12.1]} 18... Qxb3 {[%clk 0:02:14]} 19. axb3 {[%clk 0:01:10.7]} 19... Ra2
{[%clk 0:02:11.5]} 20. Nc4 {[%clk 0:01:06.5]} 20... b5 {[%clk 0:02:01.1]} 21.
Na5 {[%clk 0:01:06.2]} 21... Bd5 {[%clk 0:01:40.2]} 22. Bxb5 {[%clk 0:01:05.7]}
22... Be6 {[%clk 0:01:40.6]} 23. f3 {[%clk 0:01:04.4]} 23... Nf6 {[%clk
0:01:38.8]} 24. Rfd1 {[%clk 0:01:02.7]} 24... Nd5 {[%clk 0:01:39]} 25. Nb7
{[%clk 0:00:47]} 25... Nxf4 {[%clk 0:01:29.4]} 26. exf4 {[%clk 0:00:44.5]} 26...
Rb8 {[%clk 0:01:30.1]} 27. Bxd7 {[%clk 0:00:44.2]} 27... Rxb7 {[%clk 0:01:29]}
28. Bxe6 {[%clk 0:00:43.9]} 28... fxe6 {[%clk 0:01:29.9]} 29. Rc8+ {[%clk
0:00:41.8]} 29... Kf7 {[%clk 0:01:29.5]} 30. Rc4 {[%clk 0:00:38.4]} 30... Rb2
{[%clk 0:01:27.4]} 31. Rd3 {[%clk 0:00:37.9]} 31... Ra7 {[%clk 0:01:26.3]} 32.
Kh2 {[%clk 0:00:38.1]} 32... Raa2 {[%clk 0:01:26.5]} 0-1

[Event "Late-Titled-Tuesday-Blitz-March-05-2024"]
[Site "Chess.com"]
[Date "2024.03.05"]
[Round "2"]
[White "rickywsb"]
[Black "rdarruda"]
[Result "1/2-1/2"]
[WhiteElo "2344"]
[BlackElo "2525"]
[TimeControl "180+1"]
[EndTime "14:16:03 PST"]
[Termination "Game drawn by repetition"]

1. d4 {[%clk 0:03:00.9]} 1... Nf6 {[%clk 0:02:59]} 2. Bf4 {[%clk 0:03:00.6]}
2... d6 {[%clk 0:02:58]} 3. e3 {[%clk 0:02:58.7]} 3... g6 {[%clk 0:02:57.6]} 4.
Nf3 {[%clk 0:02:57.9]} 4... Bg7 {[%clk 0:02:57.6]} 5. h3 {[%clk 0:02:57.2]} 5...
O-O {[%clk 0:02:56]} 6. Be2 {[%clk 0:02:56.4]} 6... b6 {[%clk 0:02:56]} 7. O-O
{[%clk 0:02:46.6]} 7... Bb7 {[%clk 0:02:55.7]} 8. c4 {[%clk 0:02:46.2]} 8...
Nbd7 {[%clk 0:02:51.7]} 9. Bh2 {[%clk 0:02:45.2]} 9... e5 {[%clk 0:02:44.7]} 10.
dxe5 {[%clk 0:02:29.6]} 10... dxe5 {[%clk 0:02:43.6]} 11. Nxe5 {[%clk
0:02:29.7]} 11... Nxe5 {[%clk 0:02:39.8]} 12. Bxe5 {[%clk 0:02:29.7]} 12... Qe7
{[%clk 0:02:39.2]} 13. Bc3 {[%clk 0:02:20.6]} 13... Rad8 {[%clk 0:02:35.7]} 14.
Qa4 {[%clk 0:02:20.1]} 14... a5 {[%clk 0:02:31.8]} 15. Nd2 {[%clk 0:02:14]}
15... Rd7 {[%clk 0:02:23.5]} 16. Bf3 {[%clk 0:02:11.2]} 16... Bxf3 {[%clk
0:02:15.4]} 17. Nxf3 {[%clk 0:02:12.1]} 17... Rfd8 {[%clk 0:02:14.9]} 18. Ne5
{[%clk 0:02:09]} 18... Rd6 {[%clk 0:02:10.5]} 19. Nf3 {[%clk 0:01:52.9]} 19...
Ne4 {[%clk 0:02:08.9]} 20. Bxg7 {[%clk 0:01:51.8]} 20... Kxg7 {[%clk 0:02:09.8]}
21. Rad1 {[%clk 0:01:46.2]} 21... Qf6 {[%clk 0:02:07.8]} 22. Qc2 {[%clk
0:01:42.2]} 22... Rxd1 {[%clk 0:02:00.1]} 23. Rxd1 {[%clk 0:01:38.3]} 23...
Rxd1+ {[%clk 0:02:01]} 24. Qxd1 {[%clk 0:01:38.4]} 24... Qxb2 {[%clk 0:02:01]}
25. Qd4+ {[%clk 0:01:37]} 25... Qxd4 {[%clk 0:02:00.8]} 26. Nxd4 {[%clk
0:01:36.3]} 26... Nd6 {[%clk 0:01:54.5]} 27. Nb5 {[%clk 0:01:32.3]} 27... Nxb5
{[%clk 0:01:37.9]} 28. cxb5 {[%clk 0:01:32.3]} 28... Kf6 {[%clk 0:01:38.6]} 29.
Kf1 {[%clk 0:00:53]} 29... Ke5 {[%clk 0:01:37.9]} 30. Ke2 {[%clk 0:00:52.9]}
30... Kd5 {[%clk 0:01:38.5]} 31. Kd3 {[%clk 0:00:52.7]} 31... Kc5 {[%clk
0:01:38.6]} 32. a4 {[%clk 0:00:52.8]} 32... Kb4 {[%clk 0:01:36.7]} 33. e4 {[%clk
0:00:48]} 33... Kxa4 {[%clk 0:01:34.9]} 34. Kc4 {[%clk 0:00:48.3]} 34... Ka3
{[%clk 0:01:28.6]} 35. Kc3 {[%clk 0:00:47.1]} 35... Ka4 {[%clk 0:01:13.4]} 36.
Kc4 {[%clk 0:00:47]} 36... Ka3 {[%clk 0:01:13.8]} 37. Kc3 {[%clk 0:00:47.4]}
37... Ka4 {[%clk 0:01:14]} 38. Kc4 {[%clk 0:00:47.9]} 1/2-1/2

[Event "Late-Titled-Tuesday-Blitz-March-05-2024"]
[Site "Chess.com"]
[Date "2024.03.05"]
[Round "2"]
[White "Orest_Vovk"]
[Black "OverallStranger"]
[Result "0-1"]
[WhiteElo "2521"]
[BlackElo "2368"]
[TimeControl "180+1"]
[EndTime "14:16:08 PST"]
[Termination "OverallStranger won by resignation"]

1. h4 {[%clk 0:02:50.8]} 1... e5 {[%clk 0:02:57.1]} 2. h5 {[%clk 0:02:50.9]}
2... d5 {[%clk 0:02:55.5]} 3. h6 {[%clk 0:02:42.6]} 3... Nxh6 {[%clk 0:02:55.2]}
4. d4 {[%clk 0:02:42.8]} 4... exd4 {[%clk 0:02:53.6]} 5. Bxh6 {[%clk 0:02:43.2]}
5... gxh6 {[%clk 0:02:53.6]} 6. Qxd4 {[%clk 0:02:43.9]} 6... Rg8 {[%clk
0:02:53]} 7. Nc3 {[%clk 0:02:44.4]} 7... Bg7 {[%clk 0:02:48.8]} 8. Qf4 {[%clk
0:02:43.8]} 8... Be6 {[%clk 0:02:39.9]} 9. O-O-O {[%clk 0:02:42.3]} 9... c6
{[%clk 0:02:28.9]} 10. Ne4 {[%clk 0:02:23.9]} 10... Nd7 {[%clk 0:02:15.1]} 11.
Nd6+ {[%clk 0:02:16.2]} 11... Kf8 {[%clk 0:02:14.9]} 12. Rxh6 {[%clk 0:01:53]}
12... Bxh6 {[%clk 0:01:49.3]} 13. Qxh6+ {[%clk 0:01:53.9]} 13... Rg7 {[%clk
0:01:49.9]} 14. e4 {[%clk 0:01:36.5]} 14... Qg5+ {[%clk 0:01:40.7]} 15. Qxg5
{[%clk 0:01:36.3]} 15... Rxg5 {[%clk 0:01:41.6]} 16. Nxb7 {[%clk 0:01:33.7]}
16... Rb8 {[%clk 0:01:40.5]} 17. Na5 {[%clk 0:01:32.9]} 17... dxe4 {[%clk
0:01:41.2]} 18. Nxc6 {[%clk 0:01:31.8]} 18... Rc8 {[%clk 0:01:38.9]} 19. Nxa7
{[%clk 0:01:27.6]} 19... Ra8 {[%clk 0:01:38.3]} 20. Nh3 {[%clk 0:01:11.7]} 20...
Bxh3 {[%clk 0:01:28.7]} 21. gxh3 {[%clk 0:01:12.1]} 21... Rxa7 {[%clk
0:01:28.9]} 22. h4 {[%clk 0:01:12.6]} 22... Rg1 {[%clk 0:01:22.6]} 23. a3 {[%clk
0:01:08.7]} 23... Ne5 {[%clk 0:01:17.5]} 24. b3 {[%clk 0:00:51]} 24... Rd7
{[%clk 0:01:11.3]} 25. Re1 {[%clk 0:00:47.2]} 25... Nf3 {[%clk 0:01:10]} 26.
Rxe4 {[%clk 0:00:47.4]} 26... Rxf1+ {[%clk 0:01:09.7]} 27. Kb2 {[%clk 0:00:48]}
27... Rxf2 {[%clk 0:01:03.9]} 28. a4 {[%clk 0:00:47.5]} 28... Rdd2 {[%clk
0:01:00.8]} 29. Rc4 {[%clk 0:00:47.1]} 29... Ne1 {[%clk 0:01:01.2]} 30. b4
{[%clk 0:00:45.9]} 30... Rxc2+ {[%clk 0:01:01.3]} 31. Rxc2 {[%clk 0:00:45.8]}
31... Rxc2+ {[%clk 0:01:02.2]} 32. Kb3 {[%clk 0:00:46.6]} 32... Ke7 {[%clk
0:01:02.8]} 33. a5 {[%clk 0:00:46.2]} 33... Kd6 {[%clk 0:01:02.9]} 0-1